[Event "*** MasterClass Titled Tuesday Blitz"]
[Site "Chess.com"]
[Date "2017.12.12"]
[Round "3"]
[White "r31415"]
[Black "filali-oujda"]
[Result "0-1"]
[WhiteElo "2197"]
[BlackElo "2354"]
[TimeControl "180+2"]
[EndTime "13:36:34 PST"]
[Termination "filali-oujda won on time"]

1. e4 {[%clk 0:03:01.9]} 1... c6 {[%clk 0:03:01.5]} 2. d4 {[%clk 0:03:03]} 2...
d5 {[%clk 0:03:03.1]} 3. f3 {[%clk 0:03:04.6]} 3... dxe4 {[%clk 0:03:04.3]} 4.
fxe4 {[%clk 0:03:06.5]} 4... e6 {[%clk 0:03:03.2]} 5. Nc3 {[%clk 0:03:06.3]}
5... Nf6 {[%clk 0:03:04.4]} 6. e5 {[%clk 0:03:07.2]} 6... Nd5 {[%clk 0:03:04.9]}
7. Nf3 {[%clk 0:03:07.8]} 7... c5 {[%clk 0:03:05.7]} 8. Bb5+ {[%clk 0:02:50.4]}
8... Bd7 {[%clk 0:03:01.9]} 9. Qd3 {[%clk 0:02:17.4]} 9... Nb4 {[%clk
0:02:55.5]} 10. Qe2 {[%clk 0:02:11.3]} 10... cxd4 {[%clk 0:02:44.8]} 11. Nxd4
{[%clk 0:02:02.7]} 11... Bxb5 {[%clk 0:02:33.3]} 12. Ndxb5 {[%clk 0:01:40.3]}
12... a6 {[%clk 0:02:24]} 13. Na3 {[%clk 0:01:17.1]} 13... N8c6 {[%clk
0:02:22.7]} 14. Bf4 {[%clk 0:01:10]} 14... Bc5 {[%clk 0:02:21.8]} 15. Ne4 {[%clk
0:00:55.8]} 15... Qa5 {[%clk 0:01:57.3]} 16. Nc4 {[%clk 0:00:43.7]} 16... Qd8
{[%clk 0:00:32.1]} 17. Nxc5 {[%clk 0:00:35.4]} 17... Nd4 {[%clk 0:00:23.2]} 18.
Nd6+ {[%clk 0:00:36.5]} 18... Kf8 {[%clk 0:00:21.4]} 19. Qf2 {[%clk 0:00:15.8]}
19... Ndxc2+ {[%clk 0:00:20.8]} 20. Ke2 {[%clk 0:00:15.4]} 20... Nxa1 {[%clk
0:00:21.4]} 21. Bd2 {[%clk 0:00:09.2]} 21... Qe7 {[%clk 0:00:18.5]} 22. Bxb4
{[%clk 0:00:10.1]} 22... Nc2 {[%clk 0:00:19.6]} 23. Nxf7 {[%clk 0:00:05.9]}
23... Qxf7 {[%clk 0:00:18.9]} 24. Nxe6+ {[%clk 0:00:02.7]} 24... Kg8 {[%clk
0:00:20.2]} 25. Qxf7+ {[%clk 0:00:02.6]} 25... Kxf7 {[%clk 0:00:21.7]} 26. Ng5+
{[%clk 0:00:03.7]} 26... Kg6 {[%clk 0:00:22.3]} 27. Bd2 {[%clk 0:00:05.6]} 27...
Nd4+ {[%clk 0:00:23.1]} 28. Ke1 {[%clk 0:00:03.2]} 28... Rhe8 {[%clk 0:00:23.3]}
29. Bf4 {[%clk 0:00:04]} 29... h6 {[%clk 0:00:24.4]} 30. Ne4 {[%clk 0:00:04.1]}
30... Kf5 {[%clk 0:00:24.6]} 31. Nd6+ {[%clk 0:00:02.7]} 31... Kxf4 {[%clk
0:00:25.1]} 32. Nxe8 {[%clk 0:00:04.6]} 32... Rxe8 {[%clk 0:00:26.4]} 33. Kd2
{[%clk 0:00:04.1]} 33... Rxe5 {[%clk 0:00:25.1]} 34. Rf1+ {[%clk 0:00:03.2]}
34... Ke4 {[%clk 0:00:26.3]} 35. Rf7 {[%clk 0:00:02.2]} 35... g6 {[%clk
0:00:25.2]} 36. Rxb7 {[%clk 0:00:03.1]} 36... Rb5 {[%clk 0:00:26.3]} 37. Re7+
{[%clk 0:00:03.6]} 37... Kd5 {[%clk 0:00:26.4]} 38. b3 {[%clk 0:00:04.7]} 38...
Rb6 {[%clk 0:00:26.5]} 39. Rh7 {[%clk 0:00:05.6]} 39... Nf5 {[%clk 0:00:27.7]}
40. Rd7+ {[%clk 0:00:05.4]} 40... Nd6 {[%clk 0:00:29]} 41. Rg7 {[%clk 0:00:06]}
41... h5 {[%clk 0:00:30.1]} 42. Ke2 {[%clk 0:00:04.8]} 42... Nf5 {[%clk
0:00:29.7]} 43. Rd7+ {[%clk 0:00:06]} 43... Ke4 {[%clk 0:00:31]} 44. Rd8 {[%clk
0:00:04.1]} 44... Rc6 {[%clk 0:00:32.4]} 45. Re8+ {[%clk 0:00:04.8]} 45... Kf4
{[%clk 0:00:33.9]} 46. Kd2 {[%clk 0:00:06]} 46... h4 {[%clk 0:00:33.6]} 47. Re2
{[%clk 0:00:05.1]} 47... h3 {[%clk 0:00:34.2]} 48. gxh3 {[%clk 0:00:05.5]} 48...
Kf3 {[%clk 0:00:35.5]} 49. Kd1 {[%clk 0:00:02.5]} 49... Rc1+ {[%clk 0:00:28.8]}
0-1

[Event "*** MasterClass Titled Tuesday Blitz"]
[Site "Chess.com"]
[Date "2017.12.12"]
[Round "3"]
[White "chesstatour"]
[Black "FearNoEvil12"]
[Result "1/2-1/2"]
[WhiteElo "1994"]
[BlackElo "2046"]
[TimeControl "180+2"]
[EndTime "13:36:36 PST"]
[Termination "Game drawn by repetition"]

1. c4 {[%clk 0:03:01.9]} 1... Nf6 {[%clk 0:00:18]} 2. Nc3 {[%clk 0:03:00.6]}
2... g6 {[%clk 0:00:19.9]} 3. e4 {[%clk 0:03:01.3]} 3... Bg7 {[%clk 0:00:21.8]}
4. d4 {[%clk 0:03:02.2]} 4... O-O {[%clk 0:00:23.7]} 5. f4 {[%clk 0:03:03.7]}
5... d6 {[%clk 0:00:24.4]} 6. Nf3 {[%clk 0:03:05.2]} 6... Nc6 {[%clk 0:00:24.7]}
7. d5 {[%clk 0:03:05.5]} 7... Nb8 {[%clk 0:00:25]} 8. Bd3 {[%clk 0:03:02.1]}
8... e6 {[%clk 0:00:26]} 9. dxe6 {[%clk 0:03:02.3]} 9... fxe6 {[%clk 0:00:26.4]}
10. O-O {[%clk 0:03:03.2]} 10... Nc6 {[%clk 0:00:27.3]} 11. Kh1 {[%clk
0:03:01.2]} 11... Bd7 {[%clk 0:00:24.9]} 12. Be3 {[%clk 0:03:02.7]} 12... Qe7
{[%clk 0:00:26.1]} 13. Rc1 {[%clk 0:02:46.3]} 13... Rae8 {[%clk 0:00:27.4]} 14.
Qe1 {[%clk 0:02:46.6]} 14... e5 {[%clk 0:00:27.5]} 15. f5 {[%clk 0:02:10.8]}
15... gxf5 {[%clk 0:00:26.8]} 16. Bg5 {[%clk 0:02:12.2]} 16... Qf7 {[%clk
0:00:21.3]} 17. Qh4 {[%clk 0:01:50.9]} 17... Qg6 {[%clk 0:00:17.8]} 18. exf5
{[%clk 0:01:35]} 18... Bxf5 {[%clk 0:00:17.6]} 19. Bxf5 {[%clk 0:01:10.7]} 19...
Qxf5 {[%clk 0:00:19.5]} 20. Nd4 {[%clk 0:00:58.3]} 20... Qg6 {[%clk 0:00:18.3]}
21. Nf5 {[%clk 0:00:47.3]} 21... Ne7 {[%clk 0:00:12.6]} 22. Nxg7 {[%clk
0:00:46.4]} 22... Kxg7 {[%clk 0:00:13.5]} 23. Rf3 {[%clk 0:00:36.9]} 23... Nf5
{[%clk 0:00:14.4]} 24. Rxf5 {[%clk 0:00:21]} 24... Qxf5 {[%clk 0:00:14.9]} 25.
Bh6+ {[%clk 0:00:17.6]} 25... Kh8 {[%clk 0:00:15.3]} 26. Bxf8 {[%clk 0:00:15.6]}
26... Rxf8 {[%clk 0:00:17.2]} 27. h3 {[%clk 0:00:13.2]} 27... Nd7 {[%clk
0:00:15.3]} 28. Nd5 {[%clk 0:00:11.8]} 28... c6 {[%clk 0:00:14.4]} 29. Ne3
{[%clk 0:00:09.6]} 29... Qf4 {[%clk 0:00:15.4]} 30. Qe1 {[%clk 0:00:08.5]} 30...
Nc5 {[%clk 0:00:15.1]} 31. Qd2 {[%clk 0:00:08]} 31... Ne4 {[%clk 0:00:15.2]} 32.
Qe1 {[%clk 0:00:07.2]} 32... Nf2+ {[%clk 0:00:14.6]} 33. Kg1 {[%clk 0:00:07.9]}
33... Nxh3+ {[%clk 0:00:15.1]} 34. gxh3 {[%clk 0:00:08.4]} 34... Rg8+ {[%clk
0:00:15.6]} 35. Kh1 {[%clk 0:00:06.3]} 35... Qf3+ {[%clk 0:00:16.2]} 36. Kh2
{[%clk 0:00:07.8]} 36... Qf4+ {[%clk 0:00:15.9]} 37. Kh1 {[%clk 0:00:09.1]}
37... Rg3 {[%clk 0:00:13.6]} 38. Ng2 {[%clk 0:00:05.7]} 38... Rxh3+ {[%clk
0:00:13.7]} 39. Kg1 {[%clk 0:00:07.2]} 39... Rg3 {[%clk 0:00:13.1]} 40. Rc2
{[%clk 0:00:08.2]} 40... Qd4+ {[%clk 0:00:11.4]} 41. Rf2 {[%clk 0:00:07.8]}
41... h5 {[%clk 0:00:09.9]} 42. Kf1 {[%clk 0:00:07.9]} 42... h4 {[%clk
0:00:09.2]} 43. Qe2 {[%clk 0:00:06.3]} 43... h3 {[%clk 0:00:09.2]} 44. Qh5+
{[%clk 0:00:04.5]} 44... Kg8 {[%clk 0:00:09.5]} 45. Ne3 {[%clk 0:00:03.1]} 45...
Qxe3 {[%clk 0:00:06.4]} 46. Qf7+ {[%clk 0:00:04.6]} 46... Kh8 {[%clk 0:00:06.5]}
47. Qh5+ {[%clk 0:00:04.5]} 47... Kg8 {[%clk 0:00:05.6]} 48. Qf7+ {[%clk
0:00:05.5]} 48... Kh8 {[%clk 0:00:06.7]} 49. Qh5+ {[%clk 0:00:06.7]} 49... Kg8
{[%clk 0:00:07.5]} 50. Qf7+ {[%clk 0:00:07.9]} 50... Kh8 {[%clk 0:00:08.3]} 51.
Qh5+ {[%clk 0:00:08]} 51... Kg8 {[%clk 0:00:09.4]} 52. Qe8+ {[%clk 0:00:07.7]}
52... Kh7 {[%clk 0:00:08.5]} 53. Qh5+ {[%clk 0:00:07.6]} 53... Kg8 {[%clk
0:00:08.5]} 1/2-1/2

[Event "*** MasterClass Titled Tuesday Blitz"]
[Site "Chess.com"]
[Date "2017.12.12"]
[Round "3"]
[White "Vahe_Dan"]
[Black "AkshatChandra"]
[Result "1/2-1/2"]
[WhiteElo "2551"]
[BlackElo "2728"]
[TimeControl "180+2"]
[EndTime "13:36:39 PST"]
[Termination "Game drawn - insufficient material"]

1. e4 {[%clk 0:02:35.5]} 1... e5 {[%clk 0:02:59.6]} 2. Nf3 {[%clk 0:02:34.1]}
2... Nc6 {[%clk 0:03:00.9]} 3. Bb5 {[%clk 0:02:34.8]} 3... Nf6 {[%clk
0:02:59.9]} 4. O-O {[%clk 0:02:35]} 4... Nxe4 {[%clk 0:03:01]} 5. d4 {[%clk
0:02:34.2]} 5... Nd6 {[%clk 0:03:01.9]} 6. Bxc6 {[%clk 0:02:34.6]} 6... dxc6
{[%clk 0:03:03.8]} 7. dxe5 {[%clk 0:02:36.4]} 7... Nf5 {[%clk 0:03:04.8]} 8.
Qxd8+ {[%clk 0:02:38.3]} 8... Kxd8 {[%clk 0:03:06.6]} 9. Nc3 {[%clk 0:02:40]}
9... Ke8 {[%clk 0:03:05.6]} 10. h3 {[%clk 0:02:40.2]} 10... h5 {[%clk
0:03:05.1]} 11. Bf4 {[%clk 0:02:38.7]} 11... Be7 {[%clk 0:02:35.3]} 12. Rad1
{[%clk 0:02:37.9]} 12... Be6 {[%clk 0:02:36.5]} 13. Ng5 {[%clk 0:02:37.4]} 13...
Rh6 {[%clk 0:02:37.8]} 14. Nxe6 {[%clk 0:02:36.9]} 14... Rxe6 {[%clk 0:02:37.7]}
15. g4 {[%clk 0:02:38]} 15... hxg4 {[%clk 0:02:35.3]} 16. hxg4 {[%clk
0:02:39.9]} 16... Nh4 {[%clk 0:02:33.8]} 17. Bg3 {[%clk 0:02:39.6]} 17... Nf3+
{[%clk 0:02:22]} 18. Kg2 {[%clk 0:02:40.1]} 18... Nxe5 {[%clk 0:02:23.7]} 19.
Bxe5 {[%clk 0:02:41.9]} 19... Rxe5 {[%clk 0:02:22]} 20. Rh1 {[%clk 0:02:43.8]}
20... Re6 {[%clk 0:02:03.8]} 21. Rh8+ {[%clk 0:02:42.1]} 21... Bf8 {[%clk
0:02:05.1]} 22. f4 {[%clk 0:02:40]} 22... Rh6 {[%clk 0:01:49.4]} 23. Rxh6 {[%clk
0:02:39.4]} 23... gxh6 {[%clk 0:01:51.3]} 24. Re1+ {[%clk 0:02:40.8]} 24... Kd7
{[%clk 0:01:48.4]} 25. Ne4 {[%clk 0:02:41.9]} 25... b6 {[%clk 0:01:43.3]} 26.
Kf3 {[%clk 0:02:42.5]} 26... Bg7 {[%clk 0:01:43.8]} 27. c3 {[%clk 0:02:39.2]}
27... c5 {[%clk 0:01:44.1]} 28. Ng3 {[%clk 0:02:39.7]} 28... Kc6 {[%clk
0:01:37.1]} 29. Nf5 {[%clk 0:02:37.6]} 29... Bf8 {[%clk 0:01:38.1]} 30. Rh1
{[%clk 0:02:36]} 30... Rd8 {[%clk 0:01:33.9]} 31. Nxh6 {[%clk 0:02:23.9]} 31...
Rd7 {[%clk 0:01:19.9]} 32. g5 {[%clk 0:02:21.5]} 32... c4 {[%clk 0:01:17.5]} 33.
Ng4 {[%clk 0:02:20.5]} 33... Bd6 {[%clk 0:00:38.4]} 34. Nf6 {[%clk 0:02:20.2]}
34... Re7 {[%clk 0:00:35.2]} 35. Ne4 {[%clk 0:02:19.4]} 35... b5 {[%clk
0:00:33.5]} 36. a3 {[%clk 0:02:18.4]} 36... a5 {[%clk 0:00:34.4]} 37. Rh7 {[%clk
0:02:16.1]} 37... Kd5 {[%clk 0:00:18.3]} 38. Nf6+ {[%clk 0:02:14.8]} 38... Kc6
{[%clk 0:00:19.6]} 39. Ne4 {[%clk 0:02:15.9]} 39... Kd5 {[%clk 0:00:20.8]} 40.
Ng3 {[%clk 0:02:04.9]} 40... Bc5 {[%clk 0:00:17.1]} 41. Nf5 {[%clk 0:02:04]}
41... Re1 {[%clk 0:00:12.7]} 42. Rxf7 {[%clk 0:02:04.3]} 42... Rf1+ {[%clk
0:00:13.7]} 43. Kg4 {[%clk 0:02:04.5]} 43... Rg1+ {[%clk 0:00:14.4]} 44. Kh5
{[%clk 0:02:05.2]} 44... Ke4 {[%clk 0:00:11.9]} 45. Nh4 {[%clk 0:02:01.4]} 45...
Be3 {[%clk 0:00:11.4]} 46. Rxc7 {[%clk 0:01:56.1]} 46... Bxf4 {[%clk 0:00:09.1]}
47. Rc5 {[%clk 0:01:54.1]} 47... Rxg5+ {[%clk 0:00:09.5]} 48. Rxg5 {[%clk
0:01:51.4]} 48... Bxg5 {[%clk 0:00:11.4]} 49. Kxg5 {[%clk 0:01:53.3]} 49... Kd3
{[%clk 0:00:13]} 50. Kf5 {[%clk 0:01:51.1]} 50... Kc2 {[%clk 0:00:14]} 51. Nf3
{[%clk 0:01:42.9]} 51... Kxb2 {[%clk 0:00:14.6]} 52. Nd4 {[%clk 0:01:43]} 52...
Kxc3 {[%clk 0:00:08.9]} 53. Nxb5+ {[%clk 0:01:40.7]} 53... Kb3 {[%clk 0:00:07]}
54. Ke4 {[%clk 0:01:27.7]} 54... Ka4 {[%clk 0:00:08]} 55. Nc3+ {[%clk 0:01:21]}
55... Kxa3 {[%clk 0:00:08.9]} 56. Nd5 {[%clk 0:01:21.6]} 56... Kb3 {[%clk
0:00:07.5]} 57. Kd4 {[%clk 0:01:20.5]} 57... a4 {[%clk 0:00:08.9]} 58. Nc3
{[%clk 0:01:21.5]} 58... a3 {[%clk 0:00:09.8]} 59. Ne2 {[%clk 0:01:17.4]} 59...
Kb2 {[%clk 0:00:08.2]} 60. Nc3 {[%clk 0:01:17.5]} 60... Kb3 {[%clk 0:00:08.9]}
61. Ne2 {[%clk 0:01:18.3]} 61... Kb4 {[%clk 0:00:05.9]} 62. Nc3 {[%clk
0:01:09.7]} 62... Kb3 {[%clk 0:00:07]} 63. Ne2 {[%clk 0:01:09.5]} 63... c3
{[%clk 0:00:04.7]} 64. Nxc3 {[%clk 0:01:09.4]} 64... Kb2 {[%clk 0:00:06.4]} 65.
Kc4 {[%clk 0:01:10.1]} 65... a2 {[%clk 0:00:07.2]} 66. Nxa2 {[%clk 0:01:11.1]}
1/2-1/2

[Event "*** MasterClass Titled Tuesday Blitz"]
[Site "Chess.com"]
[Date "2017.12.12"]
[Round "3"]
[White "liquormark"]
[Black "nicegg"]
[Result "1/2-1/2"]
[WhiteElo "2008"]
[BlackElo "1978"]
[TimeControl "180+2"]
[EndTime "13:36:40 PST"]
[Termination "Game drawn - insufficient material"]

1. c4 {[%clk 0:03:01.9]} 1... e5 {[%clk 0:03:00.4]} 2. Nc3 {[%clk 0:03:03]} 2...
d6 {[%clk 0:03:00.9]} 3. Nf3 {[%clk 0:03:03.8]} 3... c6 {[%clk 0:03:01.5]} 4. g3
{[%clk 0:03:04.9]} 4... f5 {[%clk 0:03:02.4]} 5. d3 {[%clk 0:03:05.1]} 5... Qf6
{[%clk 0:03:02.7]} 6. Bg2 {[%clk 0:03:04.7]} 6... h6 {[%clk 0:03:03.7]} 7. Rb1
{[%clk 0:03:04.3]} 7... g5 {[%clk 0:03:04.1]} 8. Qc2 {[%clk 0:03:03.8]} 8... Ne7
{[%clk 0:03:04.1]} 9. b4 {[%clk 0:03:04.1]} 9... Ng6 {[%clk 0:03:04.7]} 10. b5
{[%clk 0:03:04.7]} 10... g4 {[%clk 0:03:05]} 11. Nd2 {[%clk 0:03:03.8]} 11... h5
{[%clk 0:03:05.9]} 12. bxc6 {[%clk 0:03:03.1]} 12... bxc6 {[%clk 0:03:05.5]} 13.
Qa4 {[%clk 0:03:00.2]} 13... Bd7 {[%clk 0:03:02.6]} 14. Ba3 {[%clk 0:02:59.4]}
14... h4 {[%clk 0:03:00.2]} 15. Qb3 {[%clk 0:02:28.1]} 15... Qd8 {[%clk
0:02:30]} 16. Qb7 {[%clk 0:02:24.7]} 16... h3 {[%clk 0:02:09.3]} 17. Bf1 {[%clk
0:01:11.3]} 17... Be7 {[%clk 0:01:46.9]} 18. Qxa8 {[%clk 0:01:10.5]} 18... O-O
{[%clk 0:01:47.5]} 19. e4 {[%clk 0:00:56.9]} 19... Qa5 {[%clk 0:01:39.1]} 20.
Rxb8 {[%clk 0:00:41.1]} 20... Qxc3 {[%clk 0:01:34.1]} 21. Rxf8+ {[%clk 0:00:41]}
21... Nxf8 {[%clk 0:01:30.9]} 22. Qxa7 {[%clk 0:00:38.8]} 22... Qa1+ {[%clk
0:01:19.4]} 23. Ke2 {[%clk 0:00:39.2]} 23... fxe4 {[%clk 0:01:19.3]} 24. dxe4
{[%clk 0:00:31.3]} 24... Qxa2 {[%clk 0:01:17.8]} 25. Bc5 {[%clk 0:00:21.2]}
25... Qc2 {[%clk 0:01:07.8]} 26. Be3 {[%clk 0:00:21.6]} 26... d5 {[%clk
0:00:59.3]} 27. cxd5 {[%clk 0:00:20.1]} 27... cxd5 {[%clk 0:00:58.8]} 28. Qb6
{[%clk 0:00:21]} 28... d4 {[%clk 0:00:56.3]} 29. Qb3+ {[%clk 0:00:21.3]} 29...
Qxb3 {[%clk 0:00:55.3]} 30. Nxb3 {[%clk 0:00:23.1]} 30... dxe3 {[%clk
0:00:55.3]} 31. Kxe3 {[%clk 0:00:24.5]} 31... Bg5+ {[%clk 0:00:54.4]} 32. Ke2
{[%clk 0:00:22.7]} 32... Ne6 {[%clk 0:00:53.3]} 33. Ke1 {[%clk 0:00:21.5]} 33...
Ba4 {[%clk 0:00:53.2]} 34. Bc4 {[%clk 0:00:22.4]} 34... Kf7 {[%clk 0:00:52]} 35.
Nc5 {[%clk 0:00:23.5]} 35... Bb5 {[%clk 0:00:47.5]} 36. Bxe6+ {[%clk 0:00:22.5]}
36... Ke7 {[%clk 0:00:48.8]} 37. Bd5 {[%clk 0:00:23.6]} 37... Kd6 {[%clk
0:00:49.4]} 38. Nb3 {[%clk 0:00:23.5]} 38... Ba4 {[%clk 0:00:48.4]} 39. Nd2
{[%clk 0:00:24.5]} 39... Kc5 {[%clk 0:00:40.8]} 40. Nb1 {[%clk 0:00:25.1]} 40...
Kd4 {[%clk 0:00:38.6]} 41. Ke2 {[%clk 0:00:18.1]} 41... Bb5+ {[%clk 0:00:38.8]}
42. Kd1 {[%clk 0:00:19]} 42... Ba4+ {[%clk 0:00:38.5]} 43. Ke1 {[%clk
0:00:19.6]} 43... Kd3 {[%clk 0:00:35]} 44. f3 {[%clk 0:00:16.9]} 44... gxf3
{[%clk 0:00:33.4]} 45. Kf2 {[%clk 0:00:18.1]} 45... Be3+ {[%clk 0:00:19.7]} 46.
Kxf3 {[%clk 0:00:18.4]} 46... Bd4 {[%clk 0:00:20.8]} 47. Rd1+ {[%clk 0:00:18.6]}
47... Kc2 {[%clk 0:00:21.3]} 48. Rxd4 {[%clk 0:00:20.4]} 48... exd4 {[%clk
0:00:21.4]} 49. Na3+ {[%clk 0:00:22.3]} 49... Kb2 {[%clk 0:00:21.3]} 50. Nc4+
{[%clk 0:00:23.4]} 50... Kc3 {[%clk 0:00:22.5]} 51. Ne5 {[%clk 0:00:24.6]} 51...
d3 {[%clk 0:00:23]} 52. Nxd3 {[%clk 0:00:25.4]} 52... Kxd3 {[%clk 0:00:23.9]}
53. e5 {[%clk 0:00:26.7]} 53... Kd4 {[%clk 0:00:24.6]} 54. e6 {[%clk 0:00:27.9]}
54... Kxd5 {[%clk 0:00:25.6]} 55. Kg4 {[%clk 0:00:24.1]} 55... Kxe6 {[%clk
0:00:26.2]} 56. Kxh3 {[%clk 0:00:25.2]} 56... Kf5 {[%clk 0:00:27.5]} 57. g4+
{[%clk 0:00:27.1]} 57... Kg5 {[%clk 0:00:28.6]} 58. Kg3 {[%clk 0:00:28.4]} 58...
Bd7 {[%clk 0:00:29.5]} 59. h4+ {[%clk 0:00:30.2]} 59... Kg6 {[%clk 0:00:30.4]}
60. g5 {[%clk 0:00:31.7]} 60... Kh5 {[%clk 0:00:31.3]} 61. Kf4 {[%clk
0:00:32.5]} 61... Kxh4 {[%clk 0:00:32.2]} 62. g6 {[%clk 0:00:33.4]} 62... Be6
{[%clk 0:00:33.3]} 63. Ke5 {[%clk 0:00:35.3]} 63... Bb3 {[%clk 0:00:34.1]} 64.
Kf6 {[%clk 0:00:37.1]} 64... Kh5 {[%clk 0:00:35.2]} 65. g7 {[%clk 0:00:39]}
65... Kh6 {[%clk 0:00:36.4]} 66. g8=Q {[%clk 0:00:40.5]} 66... Bxg8 {[%clk
0:00:36.9]} 1/2-1/2

[Event "*** MasterClass Titled Tuesday Blitz"]
[Site "Chess.com"]
[Date "2017.12.12"]
[Round "3"]
[White "LuisFSiles"]
[Black "chess2matters"]
[Result "1/2-1/2"]
[WhiteElo "2231"]
[BlackElo "2321"]
[TimeControl "180+2"]
[EndTime "13:36:41 PST"]
[Termination "Game drawn by repetition"]

1. e4 {[%clk 0:03:01.9]} 1... e5 {[%clk 0:03:00.5]} 2. Nf3 {[%clk 0:03:02.2]}
2... Nc6 {[%clk 0:03:01.4]} 3. Bc4 {[%clk 0:03:02.5]} 3... Bc5 {[%clk
0:03:00.2]} 4. O-O {[%clk 0:03:02.9]} 4... Nf6 {[%clk 0:03:01.1]} 5. d4 {[%clk
0:03:04]} 5... Bxd4 {[%clk 0:03:02.6]} 6. Nxd4 {[%clk 0:03:03.2]} 6... Nxd4
{[%clk 0:03:03.6]} 7. Bg5 {[%clk 0:03:04.6]} 7... d6 {[%clk 0:03:02.1]} 8. f4
{[%clk 0:02:58.1]} 8... Qe7 {[%clk 0:03:01.6]} 9. Na3 {[%clk 0:02:25.4]} 9...
Rg8 {[%clk 0:02:51.5]} 10. c3 {[%clk 0:02:15.8]} 10... Ne6 {[%clk 0:02:51.5]}
11. fxe5 {[%clk 0:02:08.2]} 11... dxe5 {[%clk 0:02:48.7]} 12. Be3 {[%clk
0:02:02.5]} 12... Bd7 {[%clk 0:02:40.4]} 13. Bd5 {[%clk 0:01:39.7]} 13... c6
{[%clk 0:02:35.7]} 14. Bb3 {[%clk 0:01:27]} 14... Nxe4 {[%clk 0:02:28.8]} 15.
Kh1 {[%clk 0:01:24.3]} 15... Qh4 {[%clk 0:02:25.5]} 16. Kg1 {[%clk 0:00:56.4]}
16... Rd8 {[%clk 0:02:23.1]} 17. Nc4 {[%clk 0:00:49.1]} 17... Bc8 {[%clk
0:02:19.3]} 18. Qe2 {[%clk 0:00:44.2]} 18... f6 {[%clk 0:02:13.7]} 19. Bxa7
{[%clk 0:00:42.8]} 19... N4c5 {[%clk 0:02:13.5]} 20. Bb6 {[%clk 0:00:34.4]}
20... Nxb3 {[%clk 0:02:07.9]} 21. axb3 {[%clk 0:00:34.3]} 21... Rd5 {[%clk
0:02:07.6]} 22. Ra8 {[%clk 0:00:34]} 22... Ke7 {[%clk 0:02:06.4]} 23. Ne3 {[%clk
0:00:33.2]} 23... g6 {[%clk 0:01:56.7]} 24. g3 {[%clk 0:00:20.7]} 24... Qe4
{[%clk 0:01:54.2]} 25. Nxd5+ {[%clk 0:00:22.6]} 25... Qxd5 {[%clk 0:01:55.3]}
26. c4 {[%clk 0:00:23.4]} 26... Qd6 {[%clk 0:01:53.1]} 27. Be3 {[%clk
0:00:24.2]} 27... Nd4 {[%clk 0:01:52.5]} 28. Qf2 {[%clk 0:00:24.8]} 28... c5
{[%clk 0:01:50]} 29. b4 {[%clk 0:00:25.1]} 29... b6 {[%clk 0:01:50.5]} 30. bxc5
{[%clk 0:00:24.9]} 30... bxc5 {[%clk 0:01:51.7]} 31. b4 {[%clk 0:00:26.6]} 31...
Rf8 {[%clk 0:01:42.4]} 32. Ra7+ {[%clk 0:00:28]} 32... Bd7 {[%clk 0:01:42]} 33.
bxc5 {[%clk 0:00:26.7]} 33... Qxc5 {[%clk 0:01:42.8]} 34. Re1 {[%clk 0:00:28.1]}
34... Qxa7 {[%clk 0:01:39.2]} 35. Bxd4 {[%clk 0:00:28.8]} 35... Qa6 {[%clk
0:01:30.9]} 36. Bc5+ {[%clk 0:00:25.6]} 36... Kf7 {[%clk 0:01:32.4]} 37. Bxf8
{[%clk 0:00:23.1]} 37... Kxf8 {[%clk 0:01:34.3]} 38. Rxe5 {[%clk 0:00:21.5]}
38... Kf7 {[%clk 0:01:32.3]} 39. Re1 {[%clk 0:00:20.8]} 39... Qxc4 {[%clk
0:01:32.4]} 40. Qe3 {[%clk 0:00:21.8]} 40... Qe6 {[%clk 0:01:31]} 41. Qxe6+
{[%clk 0:00:22.6]} 41... Bxe6 {[%clk 0:01:31.8]} 42. Kf2 {[%clk 0:00:24.1]}
42... h5 {[%clk 0:01:30.7]} 43. Re3 {[%clk 0:00:24.9]} 43... Bg4 {[%clk
0:01:27.6]} 44. Ra3 {[%clk 0:00:25.9]} 44... Be6 {[%clk 0:01:25.9]} 45. Ra7+
{[%clk 0:00:26]} 45... Kf8 {[%clk 0:01:26.8]} 46. Ke3 {[%clk 0:00:27.3]} 46...
Bg4 {[%clk 0:01:23.7]} 47. Kd4 {[%clk 0:00:27.5]} 47... Bh3 {[%clk 0:01:23.5]}
48. Kc5 {[%clk 0:00:28.5]} 48... Bg4 {[%clk 0:01:24.3]} 49. Kd6 {[%clk
0:00:29.9]} 49... Bh3 {[%clk 0:01:24.3]} 50. Ra8+ {[%clk 0:00:28.8]} 50... Kf7
{[%clk 0:01:25]} 51. Ra7+ {[%clk 0:00:30.7]} 51... Kf8 {[%clk 0:01:26.3]} 52.
Ra4 {[%clk 0:00:27.9]} 52... Bg4 {[%clk 0:01:25]} 53. Rf4 {[%clk 0:00:29.1]}
53... Kf7 {[%clk 0:01:25.2]} 54. Rb4 {[%clk 0:00:28.9]} 54... Bh3 {[%clk
0:01:25.9]} 55. Rb7+ {[%clk 0:00:24]} 55... Kf8 {[%clk 0:01:27]} 56. Ra7 {[%clk
0:00:25.5]} 56... Bg4 {[%clk 0:01:27.4]} 57. Kc5 {[%clk 0:00:24.8]} 57... Bh3
{[%clk 0:01:25.9]} 58. Kd4 {[%clk 0:00:26.2]} 58... Bg4 {[%clk 0:01:26.7]} 59.
Ke3 {[%clk 0:00:27.7]} 59... Be6 {[%clk 0:01:27.3]} 60. Kf2 {[%clk 0:00:28.6]}
60... Bh3 {[%clk 0:01:27.7]} 61. Kf3 {[%clk 0:00:29.4]} 61... Bg4+ {[%clk
0:01:28]} 62. Kg2 {[%clk 0:00:30.9]} 62... Be6 {[%clk 0:01:28.4]} 63. h3 {[%clk
0:00:31.9]} 63... Bd5+ {[%clk 0:01:27.9]} 64. Kf2 {[%clk 0:00:31.9]} 64... Be6
{[%clk 0:01:28.7]} 65. h4 {[%clk 0:00:31.7]} 65... Bg4 {[%clk 0:01:28.5]} 66.
Ke3 {[%clk 0:00:32.4]} 66... Bh3 {[%clk 0:01:29.6]} 67. Kf4 {[%clk 0:00:32.8]}
67... Bg4 {[%clk 0:01:29.8]} 68. Ra6 {[%clk 0:00:29.1]} 68... Kf7 {[%clk
0:01:30.4]} 69. Ra7+ {[%clk 0:00:28.8]} 69... Kf8 {[%clk 0:01:31.6]} 70. Ra8+
{[%clk 0:00:26.9]} 70... Kf7 {[%clk 0:01:32.9]} 71. Ra7+ {[%clk 0:00:28.2]}
71... Kf8 {[%clk 0:01:34.3]} 72. Ra8+ {[%clk 0:00:29]} 72... Kf7 {[%clk
0:01:35.7]} 73. Ra7+ {[%clk 0:00:24.7]} 73... Kf8 {[%clk 0:01:36.7]} 74. Ra8+
{[%clk 0:00:25.6]} 1/2-1/2